fUSD/lending_fUSD_20250610
["ID","MTS","AMOUNT","RATE_DAILY","PERIOD"]
[365258261,1749567046749,-490.0,0.00016767,2]
[365258263,1749567046759,-490.0,0.00016767,2]
[365258266,1749567046769,-490.0,0.00016767,2]
[365258268,1749567046779,-320.23,0.00016767,2]
[365258270,1749567046789,-490.0,0.00016767,2]
[365258272,1749567046799,-490.0,0.00016767,2]
[365258274,1749567046808,-490.0,0.00016767,2]
[365258276,1749567046818,-490.0,0.00016767,2]
[365258278,1749567046828,-490.0,0.00016767,2]
[365258280,1749567046838,-490.0,0.00016767,2]
[365258282,1749567046847,-523.30587927,0.00016767,2]
[365258284,1749567046857,-490.0,0.00016767,2]
[365258286,1749567046867,-490.0,0.00016767,2]
[365258288,1749567046877,-430.29,0.00016767,2]
[365258290,1749567046887,-490.0,0.00016767,2]
[365258292,1749567046897,-490.0,0.00016767,2]
[365258295,1749567046908,-3639.2,0.00016767,2]
[365258297,1749567046918,-470.0,0.00016767,2]
[365258299,1749567046928,-490.0,0.00016767,2]
[365258301,1749567046938,-668.95,0.00016767,2]
[365258326,1749567047162,-490.0,0.00016767,2]
[365258328,1749567047179,-490.0,0.00016767,2]
[365258330,1749567047189,-470.0,0.00016767,2]
[365258332,1749567047198,-490.0,0.00016767,2]
[365258334,1749567047207,-386.57,0.00016767,2]
[365258336,1749567047216,-490.0,0.00016767,2]
[365258338,1749567047226,-842.01,0.00016767,2]
[365258340,1749567047235,-1065.48,0.00016767,2]
[365258342,1749567047244,-490.0,0.00016767,2]
[365258344,1749567047258,-565.14,0.00016767,2]
[365258346,1749567047267,-490.0,0.00016767,2]
[365258348,1749567047276,-490.0,0.00016767,2]
[365258350,1749567047285,-541.45,0.00016767,2]
[365258352,1749567047295,-490.0,0.00016767,2]
[365258354,1749567047304,-490.0,0.00016767,2]
[365258356,1749567047313,-490.0,0.00016767,2]
[365258358,1749567047322,-490.0,0.00016767,2]
[365258360,1749567047332,-490.0,0.00016767,2]
[365258362,1749567047341,-490.0,0.00016767,2]
[365258364,1749567047351,-638.0462513,0.00016767,2]
[365258366,1749567047359,-490.0,0.00016767,2]
[365258368,1749567047369,-4053.63,0.00016767,2]
[365258370,1749567047378,-490.0,0.00016767,2]
[365258372,1749567047387,-490.0,0.00016767,2]
[365258374,1749567047396,-490.0,0.00016767,2]
[365258376,1749567047405,-490.0,0.00016767,2]
[365258378,1749567047414,-490.0,0.00016767,2]
[365258380,1749567047424,-490.0,0.00016767,2]
[365258382,1749567047434,-490.0,0.00016767,2]
[365258384,1749567047444,-490.0,0.00016767,2]
[365258386,1749567047454,-693.91,0.00016767,2]
[365258388,1749567047463,-490.0,0.00016767,2]
[365258390,1749567047473,-490.0,0.00016767,2]
[365258392,1749567047482,-490.0,0.00016767,2]
[365258394,1749567047492,-306.05,0.00016767,2]
[365258396,1749567047503,-490.0,0.00016767,2]
[365258398,1749567047512,-490.0,0.00016767,2]
[365258400,1749567047522,-490.0,0.00016767,2]
[365258402,1749567047531,-584.9,0.00016767,2]
[365258404,1749567047540,-490.0,0.00016767,2]
[365258406,1749567047550,-587.63,0.00016767,2]
[365258408,1749567047559,-480.0,0.00016767,2]
[365258410,1749567047568,-490.0,0.00016767,2]
[365258412,1749567047577,-490.0,0.00016767,2]
[365258414,1749567047586,-1587.75,0.00016767,2]
[365258416,1749567047595,-490.0,0.00016767,2]
[365258418,1749567047604,-490.0,0.00016767,2]
[365258420,1749567047614,-509.33,0.00016767,2]
[365258422,1749567047623,-490.0,0.00016767,2]
[365258424,1749567047632,-525.82,0.00016767,2]
[365258426,1749567047641,-490.0,0.00016767,2]
[365258428,1749567047651,-1039.27,0.00016767,2]
[365258430,1749567047660,-533.71,0.00016767,2]
[365258432,1749567047669,-490.0,0.00016767,2]
[365258434,1749567047679,-490.0,0.00016767,2]
[365258436,1749567047688,-490.0,0.00016767,2]
[365258438,1749567047697,-654.73,0.00016767,2]
[365258440,1749567047706,-490.0,0.00016767,2]
[365258442,1749567047715,-1900.65,0.00016767,2]
[365258444,1749567047725,-238.08575913,0.00016767,2]
[365258446,1749567047735,-490.0,0.00016767,2]
[365258448,1749567047745,-490.0,0.00016767,2]
[365258451,1749567047756,-380.88,0.00016767,2]
[365258453,1749567047765,-607.85,0.00016767,2]
[365258455,1749567047775,-490.0,0.00016767,2]
[365258457,1749567047784,-490.0,0.00016767,2]
[365258459,1749567047794,-490.0,0.00016767,2]
[365258461,1749567047803,-490.0,0.00016767,2]
[365258463,1749567047812,-197.34950597,0.00016767,2]
[365258493,1749567048091,-835.35049403,0.00016767,2]
[365258495,1749567048101,-626.43,0.00016767,2]
[365258497,1749567048111,-713.39250597,0.00016767,2]
[365258517,1749567048434,-490.0,0.00016602,2]
[365258518,1749567048444,-174.61749403,0.00016767,2]
[365258519,1749567048454,-421.88250597,0.00016767,2]
[365258520,1749567048520,150.0,0.00016,5]
[365258521,1749567048817,-849.64946805,0.00016471,2]
[365258522,1749567048828,-68.11749403,0.00016767,2]
[365258523,1749567048837,-1787.15,0.00016767,2]
[365258524,1749567048847,-490.0,0.00016767,2]
[365258525,1749567048857,-69.29843792,0.00016767,2]
[365258526,1749567048869,-1852.35156208,0.00016767,2]
[365258527,1749567048879,-982.23,0.00016767,2]
[365258528,1749567048889,-490.0,0.00016767,2]
[365258529,1749567048899,-490.0,0.00016767,2]
[365258530,1749567048909,-490.0,0.00016767,2]
[365258531,1749567048919,-255.04462411,0.00016767,2]
[365258532,1749567048931,-64.55537589,0.00016767,2]
[365258533,1749567048940,-490.0,0.00016767,2]
[365258534,1749567048949,-490.0,0.00016767,2]
[365258535,1749567048959,-490.0,0.00016767,2]
[365258536,1749567048969,-490.0,0.00016767,2]
[365258537,1749567048978,-490.0,0.00016767,2]
[365258538,1749567048988,-490.0,0.00016767,2]
[365258539,1749567048998,-490.0,0.00016767,2]
[365258540,1749567049009,-490.0,0.00016767,2]
[365258541,1749567049019,-490.0,0.00016767,2]
[365258542,1749567049029,-490.0,0.00016767,2]
[365258543,1749567049038,-476.30462411,0.00016767,2]
[365258544,1749567049054,-13.69537589,0.00016767,2]
[365258545,1749567049065,-657.44,0.00016767,2]
[365258546,1749567049074,-328.4087437,0.00016767,2]
[365258547,1749567049086,-652.9812563,0.00016767,2]
[365258548,1749567049096,-490.0,0.00016767,2]
[365258549,1749567049106,-545.16953588,0.00016767,2]
[365258550,1749567049115,-415.46,0.00016767,2]
[365258551,1749567049124,-309.30865151,0.00016767,2]
[365258552,1749567049134,-823.67,0.00016767,2]
[365258553,1749567049144,-490.0,0.00016767,2]
[365258554,1749567049153,-490.0,0.00016767,2]
[365258555,1749567049163,-1210.41055631,0.00016767,2]
[365258556,1749567049174,-2064.86944369,0.00016767,2]
[365258557,1749567049184,-490.0,0.00016767,2]
[365258558,1749567049193,-1007.79,0.00016767,2]
[365258559,1749567049203,-490.0,0.00016767,2]
[365258560,1749567049212,-502.78,0.00016767,2]
[365258561,1749567049221,-490.0,0.00016767,2]
[365258562,1749567049230,-490.0,0.00016767,2]
[365258563,1749567049301,-490.0,0.00016767,2]
[365258564,1749567049310,-808.76,0.00016767,2]
[365258565,1749567049319,-681.9,0.00016767,2]
[365258566,1749567049329,-490.0,0.00016767,2]
[365258567,1749567049339,-490.0,0.00016767,2]
[365258568,1749567049349,-490.0,0.00016767,2]
[365258569,1749567049359,-490.0,0.00016767,2]
[365258570,1749567049369,-490.0,0.00016767,2]
[365258571,1749567049379,-490.0,0.00016767,2]
[365258572,1749567049389,-490.0,0.00016767,2]
[365258573,1749567049398,-490.0,0.00016767,2]
[365258574,1749567049408,-490.0,0.00016767,2]
[365258575,1749567049418,-490.0,0.00016767,2]
[365258576,1749567049428,-1764.67,0.00016767,2]
[365258577,1749567049438,-490.0,0.00016767,2]
[365258578,1749567049447,-490.0,0.00016767,2]
[365258579,1749567049457,-490.0,0.00016767,2]
[365258580,1749567049466,-490.0,0.00016767,2]
[365258581,1749567049476,-490.0,0.00016767,2]
[365258582,1749567049485,-490.0,0.00016767,2]
[365258583,1749567049495,-490.0,0.00016767,2]
[365258584,1749567049506,-490.0,0.00016767,2]
[365258585,1749567049515,-490.0,0.00016767,2]
[365258586,1749567049525,-579.81,0.00016767,2]
[365258587,1749567049534,-490.0,0.00016767,2]
[365258588,1749567049544,-490.0,0.00016767,2]
[365258589,1749567049554,-430.0,0.00016767,2]
[365258590,1749567049564,-21080.44,0.00016767,2]
[365258591,1749567049573,-490.0,0.00016767,2]
[365258592,1749567049583,-559.28,0.00016767,2]
[365258593,1749567049593,-295.71,0.00016767,2]
[365258594,1749567049603,-490.0,0.00016767,2]
[365258595,1749567049612,-490.0,0.00016767,2]
[365258596,1749567049623,-490.0,0.00016767,2]
[365258597,1749567049632,-490.0,0.00016767,2]
[365258598,1749567049641,-940.0,0.00016767,2]
[365258599,1749567049651,-490.0,0.00016767,2]
[365258600,1749567049661,-490.0,0.00016767,2]
[365258601,1749567049670,-490.0,0.00016767,2]
[365258602,1749567049679,-151.0,0.00016795,2]
[365258603,1749567049688,-307.293068,0.00016795,2]
[365258604,1749567049698,-307.293068,0.00016795,2]
[365258605,1749567049707,-151.0,0.00016831,2]
[365258606,1749567049717,-151.0,0.00016831,2]
[365258607,1749567049726,-151.0,0.00016831,2]
[365258608,1749567049736,-178.660763,0.00016831,2]
[365258609,1749567049745,-178.660763,0.00016831,2]
[365258610,1749567049755,-152.23,0.00016917,2]
[365258611,1749567049765,-492.0,0.00016923,2]
[365258612,1749567049774,-151.0,0.0001693,2]
[365258613,1749567049783,-151.0,0.0001693,2]
[365258614,1749567049793,-151.0,0.0001693,2]
[365258615,1749567049802,-684.596535,0.0001693,2]
[365258616,1749567049812,-684.596535,0.0001693,2]
[365258617,1749567049821,-504.97,0.0001693,2]
[365258618,1749567049830,-500.0,0.0001693,2]
[365258619,1749567049840,-500.0,0.0001693,2]
[365258620,1749567049850,-500.0,0.0001693,2]
[365258621,1749567049859,-151.0,0.00016931,2]
[365258622,1749567049868,-168.948959,0.00016931,2]
[365258623,1749567049878,-223.605368,0.00016931,2]
[365258624,1749567049887,-151.0,0.00016931,2]
[365258625,1749567049897,-166.588082,0.00016931,2]
[365258626,1749567049906,-151.081977,0.00016931,2]
[365258627,1749567049915,-151.0,0.00016931,2]
[365258628,1749567049924,-155.159365,0.00016931,2]
[365258629,1749567049933,-151.0,0.00016931,2]
[365258630,1749567049943,-151.0,0.00016931,2]
[365258631,1749567049952,-225.784119,0.00016931,2]
[365258632,1749567049961,-151.0,0.00016931,2]
[365258633,1749567049971,-151.0,0.00016931,2]
[365258634,1749567049980,-151.0,0.00016931,2]
[365258635,1749567049989,-151.0,0.00016931,2]
[365258636,1749567049999,-151.0,0.00016931,2]
[365258637,1749567050009,-151.0,0.00016931,2]
[365258638,1749567050019,-151.0,0.00016931,2]
[365258639,1749567050028,-525.131431,0.00016931,2]
[365258640,1749567050037,-525.131431,0.00016931,2]
[365258641,1749567050047,-151.0,0.00016931,2]
[365258642,1749567050056,-151.405411,0.00016931,2]
[365258643,1749567050065,-151.0,0.00016931,2]
[365258644,1749567050074,-151.0,0.00016931,2]
[365258645,1749567050084,-665.011091,0.00016931,2]
[365258646,1749567050093,-665.011091,0.00016931,2]
[365258647,1749567050102,-543.45654,0.00016931,2]
[365258648,1749567050111,-151.0,0.00016931,2]
[365258649,1749567050121,-543.45654,0.00016931,2]
[365258650,1749567050130,-151.0,0.00016931,2]
[365258651,1749567050139,-151.0,0.00016931,2]
[365258652,1749567050149,-151.86626,0.00016931,2]
[365258653,1749567050158,-151.0,0.00016931,2]
[365258654,1749567050167,-151.0,0.00016931,2]
[365258655,1749567050177,-151.0,0.00016931,2]
[365258656,1749567050186,-684.596535,0.00016931,2]
[365258657,1749567050195,-151.0,0.00016931,2]
[365258658,1749567050204,-684.596535,0.00016931,2]
[365258659,1749567050213,-151.0,0.00016931,2]
[365258660,1749567050224,-151.0,0.00016931,2]
[365258661,1749567050235,-258.278348,0.00016931,2]
[365258662,1749567050244,-258.278348,0.00016931,2]
[365258663,1749567050257,-258.278348,0.00016931,2]
[365258664,1749567050266,-258.278348,0.00016931,2]
[365258665,1749567050275,-151.0,0.00016931,2]
[365258666,1749567050285,-151.0,0.00016931,2]
[365258667,1749567050295,-178.660763,0.00016931,2]
[365258668,1749567050304,-178.660763,0.00016931,2]
[365258669,1749567050313,-151.0,0.00016931,2]
[365258670,1749567050322,-307.293068,0.00016931,2]
[365258671,1749567050332,-307.293068,0.00016931,2]
[365258672,1749567050342,-151.0,0.00016931,2]
[365258673,1749567050351,-497.495169,0.00016931,2]
[365258674,1749567050359,-497.495169,0.00016931,2]
[365258675,1749567050368,-183.810526,0.00016931,2]
[365258676,1749567050378,-183.810526,0.00016931,2]
[365258677,1749567050387,-173.102158,0.00016931,2]
[365258678,1749567050396,-173.102158,0.00016931,2]
[365258679,1749567050405,-151.0,0.00016931,2]
[365258680,1749567050414,-151.0,0.00016931,2]
[365258681,1749567050422,-490.0,0.00016931,2]
[365258682,1749567050432,-151.186294,0.00016931,2]
[365258683,1749567050442,-151.186294,0.00016931,2]
[365258684,1749567050451,-151.0,0.00016931,2]
[365258685,1749567050460,-490.0,0.00016931,2]
[365258686,1749567050469,-490.0,0.00016931,2]
[365258687,1749567050478,-490.0,0.00016931,2]
[365258688,1749567050488,-490.0,0.00016931,2]
[365258689,1749567050497,-1081.364745,0.00016931,2]
[365258690,1749567050509,-1195.518567,0.00016931,2]
[365258691,1749567050518,-622.28082063,0.00016931,2]
[365258692,1749567050527,-490.0,0.00016931,2]
[365258693,1749567050536,-421.76578945,0.00016931,2]
[365258694,1749567050545,-151.0,0.00016931,2]
[365258695,1749567050554,-490.0,0.00016931,2]
[365258696,1749567050564,-370.64,0.00016931,2]
[365258697,1749567050573,-430.0,0.00016931,2]
[365258698,1749567050582,-233.92,0.00016931,2]
[365258699,1749567050591,-490.0,0.00016931,2]
[365258700,1749567050600,-490.0,0.00016931,2]
[365258701,1749567050610,-490.0,0.00016931,2]
[365258702,1749567050619,-490.0,0.00016931,2]
[365258703,1749567050628,-505.76,0.00016931,2]
[365258704,1749567050638,-490.0,0.00016931,2]
[365258705,1749567050647,-490.0,0.00016931,2]
[365258706,1749567050656,-490.0,0.00016931,2]
[365258707,1749567050666,-490.0,0.00016931,2]
[365258708,1749567050676,-490.0,0.00016931,2]
[365258709,1749567050685,-490.0,0.00016931,2]
[365258710,1749567050695,-490.0,0.00016931,2]
[365258711,1749567050704,-490.0,0.00016931,2]
[365258712,1749567050713,-490.0,0.00016931,2]
[365258713,1749567050723,-202.58,0.00016931,2]
[365258714,1749567050731,-490.0,0.00016931,2]
[365258715,1749567050741,-490.0,0.00016931,2]
[365258716,1749567050750,-490.0,0.00016931,2]
[365258717,1749567050763,-545.55,0.00016931,2]
[365258718,1749567050772,-490.0,0.00016931,2]
[365258719,1749567050782,-490.0,0.00016931,2]
[365258720,1749567050792,-414.69902752,0.00016931,2]
[365258721,1749567050801,-341.13,0.00016931,2]
[365258722,1749567050811,-490.0,0.00016931,2]
[365258723,1749567050824,-250.03,0.00016931,2]
[365258724,1749567050834,-259.99966882,0.00016931,2]
[365258725,1749567050843,-490.0,0.00016931,2]
[365258726,1749567050853,-490.0,0.00016931,2]
[365258727,1749567050862,-151.0,0.00016931,2]
[365258728,1749567050872,-151.0,0.00016931,2]
[365258729,1749567050881,-490.0,0.00016931,2]
[365258730,1749567050891,-490.0,0.00016931,2]
[365258731,1749567050900,-490.0,0.00016931,2]
[365258732,1749567050910,-343.10861704,0.00016931,2]
[365258733,1749567050919,-490.0,0.00016931,2]
[365258734,1749567050929,-490.0,0.00016931,2]
[365258735,1749567050938,-490.0,0.00016931,2]
[365258736,1749567050948,-151.0,0.00016931,2]
[365258737,1749567050958,-178.92780757,0.00016931,2]
[365258738,1749567050967,-490.0,0.00016931,2]
[365258739,1749567050977,-490.0,0.00016931,2]
[365258740,1749567050986,-151.0,0.00016931,2]
[365258741,1749567050996,-490.0,0.00016931,2]
[365258742,1749567051008,-490.0,0.00016931,2]
[365258743,1749567051017,-151.0,0.00016931,2]
[365258744,1749567051027,-567.19,0.00016931,2]
[365258745,1749567051037,-556.62,0.00016931,2]
[365258746,1749567051046,-151.0,0.00016931,2]
[365258747,1749567051056,-490.0,0.00016931,2]
[365258748,1749567051065,-541.69,0.00016931,2]
[365258749,1749567051075,-151.0,0.00016931,2]
[365258750,1749567051084,-151.0,0.00016931,2]
[365258751,1749567051094,-490.0,0.00016931,2]
[365258752,1749567051103,-334.449665,0.00016931,2]
[365258753,1749567051113,-668.95,0.00016931,2]
[365258754,1749567051122,-334.449665,0.00016931,2]
[365258755,1749567051131,-490.0,0.00016931,2]
[365258756,1749567051141,-490.0,0.00016931,2]
[365258757,1749567051151,-151.0,0.00016931,2]
[365258758,1749567051161,-490.0,0.00016931,2]
[365258759,1749567051171,-490.0,0.00016931,2]
[365258760,1749567051180,-842.01,0.00016931,2]
[365258761,1749567051190,-151.0,0.00016931,2]
[365258762,1749567051200,-1065.48,0.00016931,2]
[365258763,1749567051209,-490.0,0.00016931,2]
[365258764,1749567051219,-565.14,0.00016931,2]
[365258765,1749567051229,-490.0,0.00016931,2]
[365258766,1749567051238,-490.0,0.00016931,2]
[365258767,1749567051248,-151.0,0.00016931,2]
[365258768,1749567051261,-252.920335,0.00016931,2]
[365258769,1749567051271,-541.45,0.00016931,2]
[365258770,1749567051280,-490.0,0.00016931,2]
[365258771,1749567051291,-252.920335,0.00016931,2]
[365258772,1749567051300,-490.0,0.00016931,2]
[365258773,1749567051309,-490.0,0.00016931,2]
[365258774,1749567051319,-490.0,0.00016931,2]
[365258775,1749567051329,-151.0,0.00016931,2]
[365258776,1749567051339,-490.0,0.00016931,2]
[365258777,1749567051349,-490.0,0.00016931,2]
[365258778,1749567051358,-151.0,0.00016931,2]
[365258779,1749567051368,-490.0,0.00016931,2]
[365258780,1749567051377,-490.0,0.00016931,2]
[365258781,1749567051386,-490.0,0.00016931,2]
[365258782,1749567051396,-490.0,0.00016931,2]
[365258783,1749567051405,-490.0,0.00016931,2]
[365258784,1749567051415,-490.0,0.00016931,2]
[365258785,1749567051425,-490.0,0.00016931,2]
[365258786,1749567051435,-490.0,0.00016931,2]
[365258787,1749567051444,-490.0,0.00016931,2]
[365258788,1749567051454,-693.91,0.00016931,2]
[365258789,1749567051463,-490.0,0.00016931,2]
[365258790,1749567051473,-490.0,0.00016931,2]
[365258791,1749567051483,-490.0,0.00016931,2]
[365258792,1749567051493,-490.0,0.00016931,2]
[365258793,1749567051503,-490.0,0.00016931,2]
[365258794,1749567051516,-318.86,0.00016931,2]
[365258795,1749567051526,-584.9,0.00016931,2]
[365258796,1749567051536,-490.0,0.00016931,2]
[365258797,1749567051546,-587.63,0.00016931,2]
[365258798,1749567051555,-490.0,0.00016931,2]
[365258799,1749567051565,-502.91,0.00016931,2]
[365258800,1749567051574,-1587.75,0.00016931,2]
[365258801,1749567051584,-490.0,0.00016931,2]
[365258802,1749567051593,-490.0,0.00016931,2]
[365258803,1749567051603,-509.33,0.00016931,2]
[365258804,1749567051613,-490.0,0.00016931,2]
[365258805,1749567051623,-323.595216,0.00016931,2]
[365258806,1749567051633,-470.83,0.00016931,2]
[365258807,1749567051643,-1039.27,0.00016931,2]
[365258808,1749567051654,-490.0,0.00016931,2]
[365258809,1749567051664,-490.0,0.00016931,2]
[365258810,1749567051674,-490.0,0.00016931,2]
[365258811,1749567051684,-654.73,0.00016931,2]
[365258812,1749567051693,-490.0,0.00016931,2]
[365258813,1749567051703,-323.595216,0.00016931,2]
[365258814,1749567051713,-1900.65,0.00016931,2]
[365258815,1749567051723,-289.64,0.00016931,2]
[365258816,1749567051733,-490.0,0.00016931,2]
[365258817,1749567051744,-607.85,0.00016931,2]
[365258818,1749567051756,-284.32869854,0.00016931,2]
[365258819,1749567051766,-412.11,0.00016931,2]
[365258820,1749567051775,-490.0,0.00016931,2]
[365258821,1749567051786,-490.0,0.00016931,2]
[365258822,1749567051796,-1032.7,0.00016931,2]
[365258823,1749567051806,-626.43,0.00016931,2]
[365258824,1749567051815,-888.01,0.00016931,2]
[365258825,1749567051825,-490.0,0.00016931,2]
[365258826,1749567051835,-1787.15,0.00016931,2]
[365258827,1749567051847,-151.0,0.00016931,2]
[365258828,1749567051856,-490.0,0.00016931,2]
[365258829,1749567051866,-1921.65,0.00016931,2]
[365258830,1749567051876,-982.23,0.00016931,2]
[365258831,1749567051886,-490.0,0.00016931,2]
[365258832,1749567051896,-490.0,0.00016931,2]
[365258833,1749567051906,-490.0,0.00016931,2]
[365258834,1749567051915,-490.0,0.00016931,2]
[365258835,1749567051926,-490.0,0.00016931,2]
[365258836,1749567051936,-490.0,0.00016931,2]
[365258837,1749567051945,-414.75,0.00016931,2]
[365258838,1749567051956,-490.0,0.00016931,2]
[365258839,1749567051966,-490.0,0.00016931,2]
[365258840,1749567051976,-490.0,0.00016931,2]
[365258841,1749567051986,-490.0,0.00016931,2]
[365258842,1749567051995,-151.0,0.00016931,2]
[365258843,1749567052007,-379.37236076,0.00016931,2]
[365258844,1749567052017,-151.0,0.00016931,2]
[365258845,1749567052026,-490.0,0.00016931,2]
[365258846,1749567052036,-490.0,0.00016931,2]
[365258847,1749567052046,-151.0,0.00016931,2]
[365258848,1749567052056,-657.44,0.00016931,2]
[365258849,1749567052066,-490.0,0.00016931,2]
[365258850,1749567052076,-981.39,0.00016931,2]
[365258851,1749567052086,-823.67,0.00016931,2]
[365258852,1749567052096,-490.0,0.00016931,2]
[365258853,1749567052106,-507.82,0.00016931,2]
[365258854,1749567052116,-3275.28,0.00016931,2]
[365258855,1749567052126,-151.0,0.00016931,2]
[365258856,1749567052136,-490.0,0.00016931,2]
[365258857,1749567052145,-151.0,0.00016931,2]
[365258858,1749567052155,-1007.79,0.00016931,2]
[365258859,1749567052165,-490.0,0.00016931,2]
[365258860,1749567052175,-502.78,0.00016931,2]
[365258861,1749567052184,-490.0,0.00016931,2]
[365258862,1749567052194,-490.0,0.00016931,2]
[365258863,1749567052204,-490.0,0.00016931,2]
[365258864,1749567052214,-808.76,0.00016931,2]
[365258865,1749567052223,-681.9,0.00016931,2]
[365258866,1749567052233,-132.09320698,0.00016931,2]
[365258867,1749567052253,-357.90679302,0.00016931,2]
[365258868,1749567052265,-73.29320698,0.00016931,2]
[365258869,1749567052277,-416.70679302,0.00016931,2]
[365258870,1749567052287,-490.0,0.00016931,2]
[365258871,1749567052298,-490.0,0.00016931,2]
[365258872,1749567052308,-490.0,0.00016931,2]
[365258873,1749567052318,-490.0,0.00016931,2]
[365258874,1749567052328,-490.0,0.00016931,2]
[365258875,1749567052341,-490.0,0.00016931,2]
[365258876,1749567052350,-490.0,0.00016931,2]
[365258877,1749567052360,-7.3721686,0.00016931,2]
[365258878,1749567052532,-1757.2978314,0.00016931,2]
[365258879,1749567052543,-490.0,0.00016931,2]
[365258880,1749567052554,-490.0,0.00016931,2]
[365258881,1749567052564,-595.21668801,0.00016931,2]
[365258882,1749567052574,-490.0,0.00016931,2]
[365258883,1749567052584,-151.0,0.00016931,2]
[365258884,1749567052594,-490.0,0.00016931,2]
[365258885,1749567052604,-490.0,0.00016931,2]
[365258886,1749567052614,-490.0,0.00016931,2]
[365258887,1749567052623,-490.0,0.00016931,2]
[365258888,1749567052634,-490.0,0.00016931,2]
[365258889,1749567052645,-510.43669759,0.00016931,2]
[365258890,1749567115649,435.0,0.000246,120]
[365258891,1749567182709,1322.5245,0.00024657,120]
[365258892,1749567212778,934.16,0.00019205,30]
[365258893,1749567234251,1333.0,0.00023447,120]
[365258894,1749567234705,465.884139,0.00015956,2]
[365258895,1749567246682,150.0,0.00016,5]
[365258896,1749567285214,1000.0,0.00024657,120]
[365258897,1749567295177,957.48844696,0.0002,30]
[365258898,1749567300294,1770.0,0.0002465,120]
[365258899,1749567301113,251.0,0.0002465,120]
[365258900,1749567301998,795.0,0.0002465,120]
[365258901,1749567319260,268.82,0.00015709,2]
[365258903,1749567360372,531.0,0.0002465,120]
[365258904,1749567361203,1773.0,0.0002465,120]
[365258905,1749567362038,228.0,0.0002465,120]
[365258906,1749567374215,50000.0,0.0002,30]
[365258908,1749567419889,1583.0,0.0002465,120]
[365258909,1749567420988,845.0,0.0002465,120]
[365258910,1749567421529,1583.0,0.0002465,120]
[365258911,1749567452667,150.0,0.00015685,7]
[365258912,1749567477387,1000.0,0.00015869,2]
[365258913,1749567492245,150.19,0.00015664,2]
[365258914,1749567492282,275.0,0.00015036,2]
[365258915,1749567492566,275.0,0.0001549,2]
[365258916,1749567492842,275.0,0.00015945,3]
[365258917,1749567529051,1362.19273432,0.00024657,120]
[365258918,1749567581576,279.0,0.00015036,2]
[365258919,1749567599767,1295.0,0.0002465,120]
[365258920,1749567607976,165.32453746,0.00024658,120]
[365258921,1749567610276,200.0,0.0001559,2]
[365258922,1749567645900,1029.37,0.00013785,2]
[365258923,1749567701474,275.0,0.00015036,2]
[365258924,1749567719596,985.0,0.0002465,120]
[365258925,1749567755467,-200.0,0.000165,6]
[365258926,1749567755496,-200.0,0.000165,6]